fUST/lending_fUST_20250212
["ID","MTS","AMOUNT","RATE_DAILY","PERIOD"]
[352791294,1739315439201,-500.0,0.0001468,2]
[352791296,1739315439211,-264.98,0.0001468,2]
[352791298,1739315439221,-490.9,0.0001468,2]
[352791300,1739315439231,-600.0,0.0001476,2]
[352791302,1739315439240,-330.54049322,0.00014816,2]
[352791304,1739315439249,-1738.71,0.00014816,2]
[352791306,1739315439259,-1091.53,0.00014816,2]
[352791308,1739315439269,-641.93,0.00014817,2]
[352791310,1739315439278,-411.31,0.00014817,2]
[352791312,1739315439287,-576.99184583,0.000149,2]
[352791314,1739315439297,-500.0,0.00014952,2]
[352791315,1739315439308,-500.0,0.00014952,2]
[352791317,1739315439319,-1786.67,0.00014953,2]
[352791320,1739315439337,-1738.71,0.00014953,2]
[352791323,1739315439351,-1091.53,0.00014953,2]
[352791325,1739315439361,-641.93,0.00014954,2]
[352791327,1739315439372,-30000.0,0.00015,4]
[352791329,1739315439383,-30000.0,0.00015,4]
[352791331,1739315439394,-30000.0,0.00015,4]
[352791333,1739315439404,-26591.50984258,0.00015,4]
[352791335,1739315439414,-500.0,0.00015089,2]
[352791337,1739315439424,-500.0,0.00015089,2]
[352791339,1739315439434,-1786.67,0.0001509,2]
[352791341,1739315439444,-1738.71,0.0001509,2]
[352791343,1739315439454,-1091.53,0.0001509,2]
[352791345,1739315439467,-641.93,0.00015091,2]
[352791347,1739315439477,-538.0,0.00015143,2]
[352791348,1739315439487,-1975.0,0.00015143,2]
[352791350,1739315439498,-2296.0,0.00015143,2]
[352791353,1739315439509,-500.0,0.00015226,2]
[352791354,1739315439519,-500.0,0.00015226,2]
[352791355,1739315439530,-1786.67,0.00015227,2]
[352791356,1739315439540,-1738.71,0.00015227,2]
[352791357,1739315439550,-1091.53,0.00015227,2]
[352791358,1739315439561,-641.93,0.00015228,2]
[352791359,1739315439571,-500.0,0.00015363,2]
[352791360,1739315439582,-429.35,0.00015363,2]
[352791361,1739315439592,-500.0,0.00015363,2]
[352791363,1739315439602,-1786.67,0.00015364,2]
[352791364,1739315439612,-1738.71,0.00015364,2]
[352791365,1739315439623,-1091.53,0.00015364,2]
[352791366,1739315439633,-641.93,0.00015365,2]
[352791367,1739315439644,-576.99184582,0.00015374,2]
[352791368,1739315439654,-500.0,0.000155,2]
[352791369,1739315439664,-500.0,0.000155,2]
[352791370,1739315439675,-1786.67,0.00015501,2]
[352791371,1739315439686,-1738.71,0.00015501,2]
[352791372,1739315439696,-1091.53,0.00015501,2]
[352791373,1739315439706,-641.93,0.00015502,2]
[352791374,1739315439716,-500.0,0.00015637,2]
[352791375,1739315439727,-500.0,0.00015637,2]
[352791376,1739315439737,-1786.67,0.00015638,2]
[352791377,1739315439747,-1738.71,0.00015638,2]
[352791378,1739315439757,-1091.53,0.00015638,2]
[352791379,1739315439767,-641.93,0.00015639,2]
[352791380,1739315439777,-217.0,0.00015675,2]
[352791381,1739315439787,-543.06004894,0.00015774,2]
[352791382,1739315439797,-500.0,0.00015774,2]
[352791383,1739315439807,-1786.67,0.00015775,2]
[352791385,1739315439817,-1738.71,0.00015775,2]
[352791387,1739315439827,-1091.53,0.00015775,2]
[352791389,1739315439837,-641.93,0.00015776,2]
[352791391,1739315439846,-300.0,0.000158,6]
[352791393,1739315439857,-576.99184582,0.00015848,2]
[352791394,1739315439866,-500.0,0.00015911,2]
[352791395,1739315439877,-1786.67,0.00015912,2]
[352791396,1739315439887,-1738.71,0.00015912,2]
[352791398,1739315439896,-1091.53,0.00015912,2]
[352791401,1739315439907,-641.93,0.00015913,2]
[352791403,1739315439916,-500.0,0.00016048,2]
[352791404,1739315439926,-1786.67,0.00016049,2]
[352791406,1739315439936,-1738.71,0.00016049,2]
[352791408,1739315439946,-1091.53,0.00016049,2]
[352791410,1739315439956,-641.93,0.0001605,2]
[352791412,1739315439965,-600.0,0.0001613,2]
[352791415,1739315439975,-153.0,0.00016182,2]
[352791417,1739315439986,-153.0,0.00016182,2]
[352791419,1739315439996,-153.0,0.00016182,2]
[352791421,1739315440006,-153.0,0.00016182,2]
[352791423,1739315440015,-153.0,0.00016182,2]
[352791424,1739315440025,-153.0,0.00016183,2]
[352791425,1739315440035,-153.0,0.00016183,2]
[352791426,1739315440046,-153.0,0.00016183,2]
[352791427,1739315440055,-153.0,0.00016183,2]
[352791428,1739315440065,-153.0,0.00016183,2]
[352791429,1739315440074,-153.0,0.00016183,2]
[352791430,1739315440083,-153.0,0.00016183,2]
[352791431,1739315440093,-153.0,0.00016183,2]
[352791432,1739315440103,-153.0,0.00016183,2]
[352791433,1739315440114,-500.0,0.00016185,2]
[352791434,1739315440123,-153.0,0.00016185,2]
[352791435,1739315440133,-153.0,0.00016185,2]
[352791436,1739315440143,-153.0,0.00016185,2]
[352791437,1739315440153,-153.0,0.00016185,2]
[352791438,1739315440164,-153.0,0.00016185,2]
[352791439,1739315440174,-153.0,0.00016185,2]
[352791440,1739315440184,-153.0,0.00016185,2]
[352791441,1739315440194,-153.0,0.00016185,2]
[352791442,1739315440204,-153.0,0.00016185,2]
[352791443,1739315440214,-1786.67,0.00016186,2]
[352791444,1739315440224,-1738.94497623,0.00016186,2]
[352791445,1739315440234,-1091.548065,0.00016186,2]
[352791446,1739315440244,-641.93,0.00016187,2]
[352791448,1739315440255,-168.24611049,0.00016274,2]
[352791450,1739315440264,-576.99184582,0.00016321,2]
[352791452,1739315440274,-500.0,0.00016322,2]
[352791454,1739315440283,-590.61434534,0.00016322,2]
[352791455,1739315440293,-1786.87,0.00016323,2]
[352791456,1739315440304,-500.0,0.00016438,2]
[352791457,1739315440317,-500.0,0.00016459,2]
[352791458,1739315440327,-500.0,0.00016485,2]
[352791459,1739315440337,-500.0,0.00016485,2]
[352791460,1739315440348,-371.51484511,0.00016485,2]
[352791461,1739315440359,-500.0,0.00016485,2]
[352791462,1739315440369,-500.0,0.00016485,2]
[352791463,1739315440379,-13268.2024785,0.00016491,2]
[352791464,1739315440392,-495.17,0.00016596,2]
[352791465,1739315440403,-500.0,0.00016622,2]
[352791466,1739315440412,-500.0,0.00016622,2]
[352791467,1739315440422,-151.0,0.000167,2]
[352791468,1739315440432,-151.0,0.000167,2]
[352791469,1739315440442,-337.6392919,0.00016709,2]
[352791470,1739315440452,-618.35,0.00016759,2]
[352791471,1739315440463,-500.0,0.00016759,2]
[352791472,1739315440472,-576.99184582,0.00016795,2]
[352791473,1739315440482,-151.0,0.000168,2]
[352791474,1739315440492,-151.0,0.000168,2]
[352791475,1739315440502,-500.0,0.00016873,2]
[352791476,1739315440512,-500.0,0.00016873,2]
[352791477,1739315440522,-500.0,0.00016873,2]
[352791478,1739315440531,-500.65557259,0.00016873,2]
[352791479,1739315440541,-331.47924924,0.00016873,2]
[352791481,1739315440550,-571.67110399,0.00016873,2]
[352791482,1739315440559,-500.0,0.00016873,2]
[352791483,1739315440569,-500.0,0.00016878,2]
[352791484,1739315440579,-150.23,0.00016879,2]
[352791485,1739315440589,-199.52,0.00016879,2]
[352791486,1739315440599,-150.23,0.00016879,2]
[352791487,1739315440608,-150.23,0.00016879,2]
[352791488,1739315440619,-150.23,0.00016879,2]
[352791489,1739315440630,-150.24,0.00016879,2]
[352791490,1739315440640,-150.23,0.00016879,2]
[352791491,1739315440649,-150.24,0.00016879,2]
[352791492,1739315440659,-150.24,0.00016879,2]
[352791493,1739315440668,-150.23,0.00016879,2]
[352791494,1739315440679,-19482.44700229,0.00016895,5]
[352791495,1739315440690,-4013.18521639,0.00016895,5]
[352791496,1739315440699,-59753.47602993,0.00016895,61]
[352791497,1739315440719,-29999.75135467,0.00016895,61]
[352791498,1739315440732,-4958.90884029,0.00016895,61]
[352791499,1739315440743,-3438.2302482,0.00016895,61]
[352791528,1739315445243,-39902.94831231,0.00016895,61]
[352791529,1739315445255,-1323.19057537,0.00016895,61]
[352791530,1739315445302,-3558.68774502,0.00016895,61]
[352791531,1739315445342,-404.458,0.00015524,2]
[352791532,1739315445351,-1865.8508,0.00016895,61]
[352791558,1739315446211,-256.808065,0.00016895,61]
[352792021,1739316431160,-2216.29619753,0.00011232,4]
[352792022,1739316431199,-1176.31485958,0.00012153,2]
[352792023,1739316431238,-5000.0,0.00012276,2]
[352792024,1739316431276,-544.41,0.000124,2]
[352792025,1739316431313,-242.6106691,0.00012505,2]
[352792026,1739316431354,-300.0,0.00013033,2]
[352792027,1739316431397,-500.0,0.00013034,2]
[352792028,1739316431440,-500.0,0.00013034,2]
[352792029,1739316431482,-611.71,0.00013034,2]
[352792030,1739316431530,-500.0,0.00013034,2]
[352792031,1739316431577,-520.51,0.00013034,2]
[352792032,1739316431622,-500.0,0.00013034,2]
[352792033,1739316431663,-500.0,0.00013034,2]
[352792034,1739316431703,-500.0,0.00013034,2]
[352792035,1739316431745,-500.0,0.00013034,2]
[352792036,1739316431786,-370.22165324,0.00013035,2]
[352792037,1739316431826,-500.0,0.00013035,2]
[352792038,1739316431864,-647.80687638,0.00013035,2]
[352792039,1739316431905,-500.0,0.00013035,2]
[352792040,1739316431944,-500.0,0.00013035,2]
[352792041,1739316431982,-500.0,0.00013035,2]
[352792042,1739316432024,-500.0,0.00013035,2]
[352792043,1739316432063,-500.0,0.00013035,2]
[352792044,1739316432101,-500.0,0.00013035,2]
[352792045,1739316432141,-503.27840528,0.00013035,2]
[352792046,1739316432179,-500.0,0.00013035,2]
[352792047,1739316432220,-500.0,0.00013035,2]
[352792048,1739316432260,-500.0,0.00013035,2]
[352792049,1739316432297,-500.0,0.00013035,2]
[352792050,1739316432338,-376.06455726,0.00013035,2]
[352792051,1739316432377,-500.0,0.00013035,2]
[352792052,1739316432418,-500.0,0.00013035,2]
[352792053,1739316432459,-500.0,0.00013035,2]
[352792054,1739316432500,-500.0,0.00013035,2]
[352792055,1739316432541,-500.0,0.00013035,2]
[352792056,1739316432586,-500.0,0.00013035,2]
[352792057,1739316432626,-500.0,0.00013035,2]
[352792058,1739316432668,-601.21063814,0.00013035,2]
[352792059,1739316432709,-500.0,0.00013035,2]
[352792060,1739316432753,-500.0,0.00013035,2]
[352792061,1739316432796,-500.0,0.00013035,2]
[352792062,1739316432837,-299.87858402,0.00013035,2]
[352792063,1739316432877,-500.0,0.00013035,2]
[352792064,1739316432918,-500.0,0.00013035,2]
[352792065,1739316432959,-500.0,0.00013035,2]
[352792066,1739316433000,-500.0,0.00013035,2]
[352792067,1739316433042,-500.0,0.00013035,2]
[352792068,1739316433083,-500.0,0.00013035,2]
[352792069,1739316433122,-500.0,0.00013035,2]
[352792070,1739316433161,-500.0,0.00013035,2]
[352792071,1739316433200,-500.0,0.00013035,2]
[352792072,1739316433239,-500.0,0.00013035,2]
[352792073,1739316433278,-500.0,0.00013035,2]
[352792074,1739316433315,-500.0,0.00013035,2]
[352792075,1739316433356,-500.0,0.00013035,2]
[352792076,1739316433395,-500.0,0.00013035,2]
[352792077,1739316433435,-533.09988046,0.00013035,2]
[352792078,1739316433477,-502.51161419,0.00013035,2]
[352792079,1739316433517,-500.0,0.00013035,2]
[352792080,1739316433554,-500.0,0.00013035,2]
[352792081,1739316433596,-500.0,0.00013035,2]
[352792082,1739316433636,-500.0,0.00013035,2]
[352792083,1739316433682,-361.63093715,0.00013035,2]
[352792084,1739316433725,-589.94,0.00013035,2]
[352792085,1739316433765,-500.0,0.00013035,2]
[352792086,1739316433807,-500.0,0.00013035,2]
[352792087,1739316433849,-500.0,0.00013035,2]
[352792088,1739316433891,-500.0,0.00013035,2]
[352792089,1739316433932,-500.0,0.00013035,2]
[352792090,1739316433972,-500.0,0.00013035,2]
[352792091,1739316434013,-500.0,0.00013035,2]
[352792092,1739316434053,-500.0,0.00013035,2]
[352792093,1739316434094,-500.0,0.00013035,2]
[352792094,1739316434134,-500.0,0.00013035,2]
[352792095,1739316434173,-500.0,0.00013035,2]
[352792096,1739316434214,-500.0,0.00013035,2]
[352792097,1739316434255,-500.0,0.00013035,2]
[352792098,1739316434293,-500.0,0.00013035,2]
[352792099,1739316434335,-1976.23,0.00013035,2]
[352792100,1739316434374,-500.0,0.00013035,2]
[352792101,1739316434411,-270.80088978,0.00013035,2]
[352792102,1739316434451,-500.0,0.00013035,2]
[352792103,1739316434488,-503.23590351,0.00013035,2]
[352792104,1739316434527,-500.0,0.00013035,2]
[352792105,1739316434568,-500.0,0.00013035,2]
[352792106,1739316434608,-511.87366295,0.00013035,2]
[352792107,1739316434649,-500.0,0.00013035,2]
[352792108,1739316434691,-500.0,0.00013035,2]
[352792109,1739316434730,-206.38438429,0.00013035,2]
[352792110,1739316434770,-500.0,0.00013035,2]
[352792111,1739316434810,-500.0,0.00013035,2]
[352792112,1739316434851,-500.0,0.00013035,2]
[352792113,1739316434891,-190.96803487,0.00013035,2]
[352792114,1739316434931,-500.0,0.00013035,2]
[352792115,1739316434971,-500.0,0.00013035,2]
[352792116,1739316435010,-500.0,0.00013035,2]
[352792117,1739316435050,-500.0,0.00013035,2]
[352792118,1739316435090,-500.0,0.00013035,2]
[352792119,1739316435129,-500.0,0.00013035,2]
[352792120,1739316435167,-500.0,0.00013035,2]
[352792121,1739316435208,-596.87,0.00013035,2]
[352792122,1739316435249,-500.0,0.00013035,2]
[352792123,1739316435287,-500.0,0.00013035,2]
[352792124,1739316435325,-500.0,0.00013035,2]
[352792125,1739316435363,-500.0,0.00013035,2]
[352792126,1739316435398,-500.0,0.00013035,2]
[352792127,1739316435439,-363.61712831,0.00013035,2]
[352792128,1739316451075,-545.89,0.000124,2]
[352792129,1739316451099,-500.0,0.00013034,2]
[352792130,1739316451121,-136.38287169,0.00013035,2]
[352792131,1739316451143,-567.03,0.00013035,2]
[352792132,1739316451164,-500.0,0.00013035,2]
[352792133,1739316451187,-500.0,0.00013035,2]
[352792134,1739316451208,-500.0,0.00013035,2]
[352792135,1739316451231,-606.37265627,0.00013035,2]
[352792136,1739316451255,-500.0,0.00013035,2]
[352792137,1739316451276,-500.71585497,0.00013035,2]
[352792138,1739316451297,-500.0,0.00013035,2]
[352792139,1739316451318,-500.22987893,0.00013035,2]
[352792140,1739316451342,-500.0,0.00013035,2]
[352792141,1739316451363,-500.0,0.00013035,2]
[352792142,1739316451385,-500.0,0.00013035,2]
[352792143,1739316451406,-500.0,0.00013035,2]
[352792144,1739316451433,-500.0,0.00013035,2]
[352792145,1739316451456,-500.0,0.00013035,2]
[352792146,1739316451478,-500.0,0.00013035,2]
[352792147,1739316451500,-500.0,0.00013035,2]
[352792148,1739316451522,-500.0,0.00013035,2]
[352792149,1739316451545,-500.0,0.00013035,2]
[352792150,1739316451570,-500.0,0.00013035,2]
[352792151,1739316451591,-500.0,0.00013035,2]
[352792152,1739316451614,-500.0,0.00013035,2]
[352792153,1739316451638,-500.0,0.00013035,2]
[352792154,1739316451663,-500.0,0.00013035,2]
[352792155,1739316451686,-500.0,0.00013035,2]
[352792156,1739316451710,-196.19500371,0.00013035,2]
[352792169,1739316572180,-918.07238828,0.00012904,2]
[352792170,1739316572214,-10000.0,0.00013,2]
[352792171,1739316572250,-10000.0,0.00013,2]
[352792172,1739316572285,-10000.0,0.00013,2]
[352792173,1739316572322,-500.0,0.00013034,2]
[352792174,1739316572357,-500.0,0.00013034,2]
[352792175,1739316572391,-500.0,0.00013034,2]
[352792176,1739316572427,-500.0,0.00013034,2]
[352792177,1739316572460,-500.0,0.00013034,2]
[352792178,1739316572496,-500.0,0.00013034,2]
[352792179,1739316572530,-500.0,0.00013034,2]
[352792180,1739316572566,-500.0,0.00013034,2]
[352792181,1739316572601,-500.0,0.00013034,2]
[352792182,1739316572637,-500.0,0.00013034,2]
[352792183,1739316572675,-500.0,0.00013034,2]
[352792184,1739316572710,-500.0,0.00013034,2]
[352792185,1739316572749,-500.0,0.00013034,2]
[352792186,1739316572784,-500.0,0.00013034,2]
[352792187,1739316572818,-500.0,0.00013034,2]
[352792188,1739316572853,-500.0,0.00013035,2]
[352792189,1739316572888,-500.0,0.00013035,2]
[352792190,1739316572925,-500.0,0.00013035,2]
[352792191,1739316572959,-397.16253902,0.00013035,2]
[352792192,1739316572994,-500.0,0.00013035,2]
[352792193,1739316573031,-500.0,0.00013035,2]
[352792194,1739316573067,-155.25728796,0.00013035,2]
[352792195,1739316573103,-500.0,0.00013035,2]
[352792196,1739316573139,-500.0,0.00013035,2]
[352792197,1739316573173,-500.67774487,0.00013035,2]
[352792198,1739316573209,-500.0,0.00013035,2]
[352792199,1739316573244,-500.53696011,0.00013035,2]
[352792200,1739316573281,-500.0,0.00013035,2]
[352792201,1739316573316,-500.0,0.00013035,2]
[352792202,1739316573352,-500.0,0.00013035,2]
[352792203,1739316573391,-500.0,0.00013035,2]
[352792204,1739316573429,-500.0,0.00013035,2]
[352792205,1739316573466,-500.11331885,0.00013035,2]
[352792206,1739316573504,-500.0,0.00013035,2]
[352792207,1739316573543,-500.0,0.00013035,2]
[352792208,1739316573582,-527.1392963,0.00013035,2]
[352792209,1739316573621,-500.0,0.00013035,2]
[352792210,1739316573665,-655.91,0.00013035,2]
[352792211,1739316573721,-300.0,0.00013035,2]
[352792212,1739316573763,-500.0,0.00013035,2]
[352792213,1739316573805,-176.26,0.00013035,2]
[352792214,1739316573844,-500.0,0.00013035,2]
[352792215,1739316573885,-297.96,0.00013035,2]
[352792216,1739316573926,-500.0,0.00013035,2]
[352792217,1739316573966,-502.74228486,0.00013035,2]
[352792218,1739316574006,-500.0,0.00013035,2]
[352792219,1739316574045,-500.0,0.00013035,2]
[352792220,1739316574085,-500.0,0.00013035,2]
[352792221,1739316574123,-583.04021555,0.00013035,2]
[352792222,1739316574164,-326.2,0.00013035,2]
[352792223,1739316574204,-500.0,0.00013035,2]
[352792224,1739316574247,-620.80016253,0.00013035,2]
[352792225,1739316574286,-500.0,0.00013035,2]
[352792226,1739316574326,-635.37,0.00013035,2]
[352792227,1739316574367,-500.0,0.00013035,2]
[352792228,1739316574408,-509.98,0.00013035,2]
[352792229,1739316574447,-501.5007928,0.00013035,2]
[352792230,1739316574485,-500.0,0.00013035,2]
[352792231,1739316574526,-500.0,0.00013035,2]
[352792232,1739316574566,-1893.89,0.00013035,2]
[352792233,1739316574607,-500.0,0.00013035,2]
[352792234,1739316574646,-500.0,0.00013035,2]
[352792235,1739316574686,-231.71,0.00013035,2]
[352792236,1739316574731,-500.0,0.00013035,2]
[352792237,1739316574913,-463.87834712,0.00013035,2]
[352792238,1739316574952,-500.0,0.00013035,2]
[352792239,1739316574992,-500.0,0.00013035,2]
[352792240,1739316575029,-500.0,0.00013035,2]
[352792241,1739316575067,-500.0,0.00013035,2]
[352792242,1739316575105,-628.79,0.00013035,2]
[352792243,1739316575146,-500.0,0.00013035,2]
[352792244,1739316575182,-500.0,0.00013036,2]
[352792245,1739316575218,-302.58,0.00013036,2]
[352792246,1739316575254,-500.0,0.00013036,2]
[352792247,1739316575290,-500.0,0.00013036,2]
[352792248,1739316575326,-520.51,0.00013171,2]
[352792249,1739316575366,-500.0,0.00013171,2]
[352792250,1739316575407,-500.0,0.00013171,2]
[352792251,1739316575446,-157.16,0.00013171,2]
[352792252,1739316575486,-321.48,0.00013171,2]
[352792253,1739316575526,-500.0,0.00013171,2]
[352792254,1739316575565,-500.0,0.00013171,2]
[352792255,1739316575606,-500.0,0.00013171,2]
[352792256,1739316575645,-500.0,0.00013171,2]
[352792257,1739316575684,-303.80499629,0.00013171,2]
[352792258,1739316575726,-500.0,0.00013171,2]
[352792259,1739316575766,-500.0,0.00013171,2]
[352792260,1739316575808,-500.0,0.00013171,2]
[352792261,1739316575846,-341.56239353,0.00013171,2]
[352792262,1739316575887,-500.0,0.00013171,2]
[352792263,1739316575926,-500.0,0.00013171,2]
[352792264,1739316575965,-330.48,0.00013172,2]
[352792265,1739316576004,-264.38,0.00013172,2]
[352792266,1739316576042,-500.0,0.00013172,2]
[352792267,1739316576082,-172.82,0.00013172,2]
[352792268,1739316576121,-500.0,0.00013172,2]
[352792269,1739316576161,-567.38,0.00013172,2]
[352792270,1739316576200,-500.0,0.00013172,2]
[352792271,1739316576238,-500.0,0.00013172,2]
[352792272,1739316576276,-409.02391257,0.00013172,2]
[352792273,1739316576313,-609.14,0.00013172,2]
[352792274,1739316576350,-533.35,0.00013172,2]
[352792275,1739316576388,-500.0,0.00013172,2]
[352792276,1739316576426,-605.78,0.00013172,2]
[352792277,1739316576466,-500.0,0.00013172,2]
[352792278,1739316576511,-566.57,0.00013172,2]
[352792279,1739316576556,-574.08926377,0.00013172,2]
[352792280,1739316576595,-500.0,0.00013172,2]
[352792281,1739316576635,-655.91,0.00013172,2]
[352792282,1739316576674,-500.0,0.00013172,2]
[352792283,1739316576713,-500.0,0.00013172,2]
[352792284,1739316576754,-1893.89,0.00013172,2]
[352792285,1739316576795,-500.0,0.00013172,2]
[352792286,1739316576836,-500.0,0.00013172,2]
[352792287,1739316576875,-500.0,0.00013172,2]
[352792288,1739316576917,-500.0,0.00013172,2]
[352792289,1739316576957,-199.57844648,0.00013308,2]
[352792290,1739316576995,-500.0,0.00013308,2]
[352792291,1739316577034,-500.0,0.00013308,2]
[352792292,1739316577071,-500.0,0.00013308,2]
[352792293,1739316577107,-500.0,0.00013308,2]
[352792294,1739316577144,-500.0,0.00013308,2]
[352792295,1739316577181,-500.0,0.00013308,2]
[352792296,1739316577220,-500.0,0.00013308,2]
[352792297,1739316577257,-500.0,0.00013308,2]
[352792298,1739316577295,-500.0,0.00013308,2]
[352792299,1739316577332,-500.0,0.00013308,2]
[352792300,1739316577370,-520.51,0.00013308,2]
[352792301,1739316577411,-400.44,0.00013308,2]
[352792302,1739316577448,-500.0,0.00013308,2]
[352792303,1739316577488,-500.0,0.00013308,2]
[352792304,1739316577527,-500.0,0.00013308,2]
[352792305,1739316577566,-500.0,0.00013308,2]
[352792306,1739316577607,-500.0,0.00013308,2]
[352792307,1739316577645,-500.0,0.00013308,2]
[352792308,1739316577686,-500.0,0.00013308,2]
[352792309,1739316577731,-500.0,0.00013308,2]
[352792310,1739316577776,-500.0,0.00013308,2]
[352792311,1739316577815,-500.0,0.00013309,2]
[352792312,1739316577854,-274.44,0.00013309,2]
[352792313,1739316577895,-500.0,0.00013309,2]
[352792314,1739316577934,-655.91,0.00013309,2]
[352792315,1739316577973,-500.0,0.00013309,2]
[352792316,1739316578012,-185.31,0.00013309,2]
[352792317,1739316578052,-1893.89,0.00013309,2]
[352792318,1739316578092,-234.30782568,0.00013309,2]
[352792319,1739316578128,-500.0,0.00013309,2]
[352792320,1739316578167,-500.0,0.00013309,2]
[352792321,1739316578206,-500.0,0.00013309,2]
[352792322,1739316578243,-600.0,0.0001339,2]
[352792323,1739316578280,-500.0,0.00013445,2]
[352792324,1739316578317,-500.0,0.00013445,2]
[352792325,1739316578356,-520.51,0.00013445,2]
[352792326,1739316578393,-500.0,0.00013445,2]
[352792327,1739316578432,-500.0,0.00013445,2]
[352792328,1739316578470,-552.33,0.00013445,2]
[352792329,1739316578507,-500.0,0.00013445,2]
[352792330,1739316578546,-500.0,0.00013445,2]
[352792331,1739316578584,-611.3,0.00013445,2]
[352792332,1739316578625,-500.0,0.00013445,2]
[352792333,1739316578666,-500.0,0.00013445,2]
[352792334,1739316578707,-500.0,0.00013445,2]
[352792335,1739316578747,-194.34,0.00013446,2]
[352792336,1739316578785,-300.9,0.00013446,2]
[352792337,1739316578827,-655.91,0.00013446,2]
[352792338,1739316578867,-500.0,0.00013446,2]
[352792339,1739316578911,-1893.89,0.00013446,2]
[352792340,1739316578950,-266.51017962,0.00013446,2]
[352792341,1739316578990,-622.2,0.00013446,2]
[352792342,1739316579031,-500.0,0.00013446,2]
[352792343,1739316579069,-500.0,0.00013582,2]
[352792344,1739316579109,-520.51,0.00013582,2]
[352792345,1739316579148,-500.0,0.00013582,2]
[352792346,1739316579189,-500.0,0.00013582,2]
[352792347,1739316579228,-500.0,0.00013582,2]
[352792348,1739316579266,-500.0,0.00013582,2]
[352792349,1739316579305,-500.0,0.00013582,2]
[352792350,1739316579346,-500.0,0.00013582,2]
[352792351,1739316579388,-500.0,0.00013582,2]
[352792352,1739316579429,-655.91,0.00013583,2]
[352792353,1739316579469,-500.0,0.00013583,2]
[352792354,1739316579509,-1893.89,0.00013583,2]
[352792355,1739316579550,-500.0,0.00013583,2]
[352792356,1739316579590,-500.0,0.00013638,2]
[352792357,1739316579628,-500.0,0.00013638,2]
[352792358,1739316579669,-349.08259983,0.00013638,2]
[352792359,1739316579709,-267.72952181,0.00013638,2]
[352792360,1739316579748,-269.82654656,0.00013638,2]
[352792361,1739316579786,-500.0,0.00013638,2]
[352792362,1739316579933,-160.20912102,0.00013638,2]
[352792363,1739316579978,-500.0,0.00013698,2]
[352792364,1739316580018,-15.64968106,0.00013699,2]
[352792369,1739316624533,400.0,0.00010685,2]
[352792399,1739316632266,-491.3,0.000127,2]
[352792400,1739316632275,-500.0,0.00013034,2]
[352792401,1739316632286,-500.0,0.00013034,2]
[352792402,1739316632296,-500.0,0.00013171,2]
[352792403,1739316632305,-500.0,0.00013171,2]
[352792404,1739316632315,-500.0,0.00013308,2]
[352792405,1739316632324,-500.0,0.00013308,2]
[352792406,1739316632334,-500.0,0.00013445,2]
[352792407,1739316632343,-647.22,0.00013445,2]
[352792408,1739316632352,-500.0,0.00013582,2]